[Event "Late-Titled-Tuesday-Blitz-October-24-2023"]
[Site "Chess.com"]
[Date "2023.10.24"]
[Round "7"]
[White "Nick12772"]
[Black "NotFischer"]
[Result "1/2-1/2"]
[WhiteElo "2372"]
[BlackElo "2252"]
[TimeControl "180+1"]
[EndTime "15:16:52 PDT"]
[Termination "Game drawn - insufficient material"]

1. Nf3 {[%clk 0:03:00.9]} 1... g6 {[%clk 0:02:59.7]} 2. g3 {[%clk 0:03:01.3]}
2... Bg7 {[%clk 0:02:59.8]} 3. Bg2 {[%clk 0:03:02.2]} 3... d5 {[%clk 0:03:00.3]}
4. d4 {[%clk 0:03:02]} 4... Nf6 {[%clk 0:03:00.8]} 5. O-O {[%clk 0:03:02.6]}
5... O-O {[%clk 0:03:01.4]} 6. c4 {[%clk 0:03:03.1]} 6... c6 {[%clk 0:03:01.5]}
7. cxd5 {[%clk 0:03:03.7]} 7... cxd5 {[%clk 0:03:01.5]} 8. Ne5 {[%clk
0:03:04.4]} 8... Nbd7 {[%clk 0:03:00.7]} 9. Nxd7 {[%clk 0:03:02.8]} 9... Bxd7
{[%clk 0:03:00]} 10. Nc3 {[%clk 0:03:02.4]} 10... Bc6 {[%clk 0:02:59.4]} 11. Bf4
{[%clk 0:03:02.6]} 11... Rc8 {[%clk 0:02:57.9]} 12. Be5 {[%clk 0:03:02.9]} 12...
Qb6 {[%clk 0:02:53.9]} 13. b3 {[%clk 0:02:57.1]} 13... Rfd8 {[%clk 0:02:53]} 14.
Rc1 {[%clk 0:02:56.5]} 14... Ne4 {[%clk 0:02:41.2]} 15. Bxg7 {[%clk 0:02:48.2]}
15... Kxg7 {[%clk 0:02:40.9]} 16. Qd3 {[%clk 0:02:34.2]} 16... f5 {[%clk
0:02:13.1]} 17. Rfd1 {[%clk 0:02:21.8]} 17... e5 {[%clk 0:01:51.6]} 18. Nxe4
{[%clk 0:02:06.3]} 18... dxe4 {[%clk 0:01:47.8]} 19. Qe3 {[%clk 0:01:44.6]}
19... exd4 {[%clk 0:01:47.5]} 20. Qg5 {[%clk 0:01:43.8]} 20... Kf7 {[%clk
0:01:11.4]} 21. Rc4 {[%clk 0:01:34.6]} 21... Bb5 {[%clk 0:01:02.7]} 22. Rxc8
{[%clk 0:01:22.7]} 22... Rxc8 {[%clk 0:01:03.6]} 23. Qh6 {[%clk 0:01:07]} 23...
Kg8 {[%clk 0:01:03.4]} 24. Qd2 {[%clk 0:00:58.7]} 24... d3 {[%clk 0:00:51.8]}
25. exd3 {[%clk 0:00:58]} 25... Bxd3 {[%clk 0:00:51.2]} 26. Rc1 {[%clk 0:00:52]}
26... Rxc1+ {[%clk 0:00:45.6]} 27. Qxc1 {[%clk 0:00:52.9]} 27... Qc6 {[%clk
0:00:31.6]} 28. Qg5 {[%clk 0:00:52.3]} 28... Kf7 {[%clk 0:00:27.8]} 29. Qh6
{[%clk 0:00:46.4]} 29... Kf6 {[%clk 0:00:23.2]} 30. Qh4+ {[%clk 0:00:41.1]}
30... Ke6 {[%clk 0:00:15.8]} 31. h3 {[%clk 0:00:31.7]} 31... Qc1+ {[%clk
0:00:12.9]} 32. Kh2 {[%clk 0:00:32.2]} 32... e3 {[%clk 0:00:10.9]} 33. Qf4
{[%clk 0:00:17.5]} 33... Qd2 {[%clk 0:00:04.7]} 34. Qxe3+ {[%clk 0:00:17]} 34...
Qxe3 {[%clk 0:00:04.5]} 35. fxe3 {[%clk 0:00:17.9]} 35... Bb1 {[%clk 0:00:04.8]}
36. a3 {[%clk 0:00:17.9]} 36... Ba2 {[%clk 0:00:05.4]} 37. b4 {[%clk 0:00:17.4]}
37... b6 {[%clk 0:00:05.9]} 38. Kg1 {[%clk 0:00:17.3]} 38... Ke5 {[%clk
0:00:06.3]} 39. Kf2 {[%clk 0:00:18]} 39... Bd5 {[%clk 0:00:06.3]} 40. Bf1 {[%clk
0:00:15.2]} 40... Be4 {[%clk 0:00:05.9]} 41. Bc4 {[%clk 0:00:14.5]} 41... h6
{[%clk 0:00:05.8]} 42. h4 {[%clk 0:00:14.3]} 42... g5 {[%clk 0:00:06.1]} 43.
hxg5 {[%clk 0:00:14.6]} 43... hxg5 {[%clk 0:00:07]} 44. Ke2 {[%clk 0:00:13.2]}
44... Bd5 {[%clk 0:00:07.3]} 45. Ba6 {[%clk 0:00:10.1]} 45... Bb3 {[%clk
0:00:07.1]} 46. Bb7 {[%clk 0:00:07.8]} 46... Ba4 {[%clk 0:00:05.8]} 47. Bc8
{[%clk 0:00:05.1]} 47... Bb5+ {[%clk 0:00:06]} 48. Kf3 {[%clk 0:00:05.3]} 48...
g4+ {[%clk 0:00:05.9]} 49. Kf2 {[%clk 0:00:05.4]} 49... Bd3 {[%clk 0:00:06.1]}
50. Bb7 {[%clk 0:00:04.9]} 50... Be4 {[%clk 0:00:05.6]} 51. Bc8 {[%clk
0:00:04.8]} 51... Kd5 {[%clk 0:00:05.9]} 52. Ba6 {[%clk 0:00:02.6]} 52... Kc6
{[%clk 0:00:06.1]} 53. Be2 {[%clk 0:00:03]} 53... b5 {[%clk 0:00:04.9]} 54. Ke1
{[%clk 0:00:03.5]} 54... Kd5 {[%clk 0:00:04.2]} 55. Kd2 {[%clk 0:00:04.1]} 55...
Bf3 {[%clk 0:00:04.4]} 56. Bd3 {[%clk 0:00:04]} 56... Be4 {[%clk 0:00:04.8]} 57.
Be2 {[%clk 0:00:04.8]} 57... Ke5 {[%clk 0:00:05.1]} 58. Kc3 {[%clk 0:00:05.2]}
58... a6 {[%clk 0:00:05.2]} 59. Bd1 {[%clk 0:00:05.4]} 59... Bc6 {[%clk
0:00:04.2]} 60. Bb3 {[%clk 0:00:05.8]} 60... Ke4 {[%clk 0:00:04.4]} 61. Kd2
{[%clk 0:00:04.3]} 61... Kf3 {[%clk 0:00:04.6]} 62. Bc2 {[%clk 0:00:03.4]} 62...
Kxg3 {[%clk 0:00:04.6]} 63. Bxf5 {[%clk 0:00:03.4]} 63... Kf3 {[%clk 0:00:05.1]}
64. Bc8 {[%clk 0:00:03.3]} 64... g3 {[%clk 0:00:04.7]} 65. Bh3 {[%clk
0:00:02.7]} 65... g2 {[%clk 0:00:05.2]} 66. Bxg2+ {[%clk 0:00:03.4]} 66... Kxg2
{[%clk 0:00:06.1]} 67. Kd3 {[%clk 0:00:04.1]} 67... Kf3 {[%clk 0:00:06.9]} 68.
Kd4 {[%clk 0:00:05]} 68... Bb7 {[%clk 0:00:06.2]} 69. Kc5 {[%clk 0:00:05.3]}
69... Kxe3 {[%clk 0:00:06.7]} 70. Kb6 {[%clk 0:00:06.2]} 70... Bc8 {[%clk
0:00:06.9]} 71. Kc7 {[%clk 0:00:07]} 71... Be6 {[%clk 0:00:07.2]} 72. Kb6 {[%clk
0:00:07.3]} 72... Bc8 {[%clk 0:00:06.9]} 73. Kc7 {[%clk 0:00:07.7]} 73... Be6
{[%clk 0:00:07.5]} 74. Kb6 {[%clk 0:00:08.4]} 74... Bc4 {[%clk 0:00:07.1]} 75.
Kxa6 {[%clk 0:00:09.1]} 75... Kd4 {[%clk 0:00:07.3]} 76. Ka5 {[%clk 0:00:09.1]}
76... Kc3 {[%clk 0:00:07.1]} 77. a4 {[%clk 0:00:08.8]} 77... bxa4 {[%clk
0:00:07.5]} 78. Kxa4 {[%clk 0:00:09.7]} 78... Kd4 {[%clk 0:00:07.6]} 79. Ka5
{[%clk 0:00:10.3]} 79... Kd5 {[%clk 0:00:07.8]} 80. b5 {[%clk 0:00:10.5]} 80...
Bxb5 {[%clk 0:00:07.8]} 1/2-1/2

[Event "Late-Titled-Tuesday-Blitz-October-24-2023"]
[Site "Chess.com"]
[Date "2023.10.24"]
[Round "7"]
[White "Fradi82"]
[Black "venturov"]
[Result "1-0"]
[WhiteElo "2354"]
[BlackElo "2490"]
[TimeControl "180+1"]
[EndTime "15:16:59 PDT"]
[Termination "Fradi82 won on time"]

1. e4 {[%clk 0:03:00.9]} 1... Nf6 {[%clk 0:02:59.4]} 2. e5 {[%clk 0:03:00.8]}
2... Nd5 {[%clk 0:02:59.9]} 3. c4 {[%clk 0:03:01.2]} 3... Nb6 {[%clk 0:03:00.3]}
4. d4 {[%clk 0:03:01.7]} 4... d6 {[%clk 0:03:01]} 5. exd6 {[%clk 0:03:02.2]}
5... cxd6 {[%clk 0:03:01.3]} 6. Nc3 {[%clk 0:03:02.6]} 6... g6 {[%clk 0:03:02]}
7. Be3 {[%clk 0:03:02.9]} 7... Bg7 {[%clk 0:03:02.7]} 8. Rc1 {[%clk 0:03:03.1]}
8... O-O {[%clk 0:03:03.4]} 9. b3 {[%clk 0:03:03.5]} 9... Bf5 {[%clk 0:03:04.1]}
10. Nge2 {[%clk 0:03:01.6]} 10... d5 {[%clk 0:03:02.3]} 11. c5 {[%clk
0:03:01.3]} 11... Nc8 {[%clk 0:03:00.3]} 12. Ng3 {[%clk 0:03:01.6]} 12... Nc6
{[%clk 0:02:58.1]} 13. Nxf5 {[%clk 0:02:59]} 13... gxf5 {[%clk 0:02:59]} 14. Be2
{[%clk 0:02:58.1]} 14... e6 {[%clk 0:02:56]} 15. Qd2 {[%clk 0:02:57]} 15... N8e7
{[%clk 0:02:46.7]} 16. O-O {[%clk 0:02:56]} 16... Ng6 {[%clk 0:02:46.9]} 17. g3
{[%clk 0:02:50.2]} 17... f4 {[%clk 0:02:29.3]} 18. Bxf4 {[%clk 0:01:53.9]} 18...
Nxf4 {[%clk 0:02:23.4]} 19. Qxf4 {[%clk 0:01:52]} 19... Nxd4 {[%clk 0:02:22.6]}
20. Qd2 {[%clk 0:01:42.5]} 20... Rc8 {[%clk 0:02:12.4]} 21. b4 {[%clk
0:01:38.3]} 21... a5 {[%clk 0:02:09.9]} 22. Nb5 {[%clk 0:01:29.2]} 22... Nxe2+
{[%clk 0:01:59.2]} 23. Qxe2 {[%clk 0:01:29.4]} 23... axb4 {[%clk 0:01:59.6]} 24.
Nd6 {[%clk 0:01:24.9]} 24... Rc7 {[%clk 0:01:33]} 25. Qb5 {[%clk 0:01:23.6]}
25... Qa8 {[%clk 0:01:32.7]} 26. Qxb4 {[%clk 0:01:07.7]} 26... Qxa2 {[%clk
0:01:32.5]} 27. Nxb7 {[%clk 0:01:04]} 27... Rb8 {[%clk 0:01:31.8]} 28. c6 {[%clk
0:01:03.9]} 28... Qb2 {[%clk 0:01:01.2]} 29. Qxb2 {[%clk 0:00:48.2]} 29... Bxb2
{[%clk 0:01:02.1]} 30. Rc2 {[%clk 0:00:47.8]} 30... Ba3 {[%clk 0:00:47.7]} 31.
Kg2 {[%clk 0:00:42.6]} 31... Rbc8 {[%clk 0:00:40.4]} 32. Ra1 {[%clk 0:00:35.4]}
32... Be7 {[%clk 0:00:27.2]} 33. Rac1 {[%clk 0:00:34.5]} 33... Ba3 {[%clk
0:00:25.6]} 34. Ra1 {[%clk 0:00:34.2]} 34... Be7 {[%clk 0:00:13.7]} 35. Rac1
{[%clk 0:00:34.1]} 35... d4 {[%clk 0:00:06.8]} 36. Kf3 {[%clk 0:00:28.9]} 36...
d3 {[%clk 0:00:07.1]} 37. Rc4 {[%clk 0:00:21.6]} 37... Rxc6 {[%clk 0:00:01.5]}
38. Rxc6 {[%clk 0:00:17.1]} 38... Rxc6 {[%clk 0:00:02.4]} 39. Rxc6 {[%clk
0:00:16.8]} 39... d2 {[%clk 0:00:03]} 40. Ke2 {[%clk 0:00:17.2]} 40... Bg5
{[%clk 0:00:02.7]} 41. f4 {[%clk 0:00:15.9]} 41... Bf6 {[%clk 0:00:03]} 42. Kxd2
{[%clk 0:00:16.2]} 42... Kg7 {[%clk 0:00:03.9]} 43. Kd3 {[%clk 0:00:16.5]} 43...
h5 {[%clk 0:00:04.8]} 44. Rc7 {[%clk 0:00:16.1]} 44... h4 {[%clk 0:00:05.7]} 45.
Nc5 {[%clk 0:00:14.7]} 45... hxg3 {[%clk 0:00:06.6]} 46. Nxe6+ {[%clk
0:00:14.8]} 46... Kg6 {[%clk 0:00:07.5]} 47. Nf8+ {[%clk 0:00:08.6]} 47... Kg7
{[%clk 0:00:07.2]} 48. Ne6+ {[%clk 0:00:08.9]} 48... Kg6 {[%clk 0:00:07.9]} 49.
hxg3 {[%clk 0:00:09]} 49... fxe6 {[%clk 0:00:08.3]} 50. Ke4 {[%clk 0:00:08.8]}
50... Bd8 {[%clk 0:00:07.7]} 51. Rb7 {[%clk 0:00:09.1]} 51... Kf6 {[%clk
0:00:07.7]} 52. g4 {[%clk 0:00:09.5]} 52... Ba5 {[%clk 0:00:07.3]} 53. Ra7
{[%clk 0:00:09.6]} 53... Bc3 {[%clk 0:00:06.7]} 54. Ra6 {[%clk 0:00:10]} 54...
Ke7 {[%clk 0:00:05.7]} 55. f5 {[%clk 0:00:09.9]} 55... exf5+ {[%clk 0:00:05.9]}
56. Kxf5 {[%clk 0:00:10.5]} 56... Kf7 {[%clk 0:00:06.8]} 57. g5 {[%clk
0:00:10.9]} 57... Bb2 {[%clk 0:00:07.7]} 58. g6+ {[%clk 0:00:11.4]} 58... Kg7
{[%clk 0:00:07.9]} 59. Ra7+ {[%clk 0:00:12]} 59... Kg8 {[%clk 0:00:08.5]} 60.
Rb7 {[%clk 0:00:11.3]} 60... Bc3 {[%clk 0:00:08.9]} 61. Kg5 {[%clk 0:00:11.6]}
61... Bd2+ {[%clk 0:00:09.2]} 62. Kf6 {[%clk 0:00:11.5]} 62... Bc3+ {[%clk
0:00:09.9]} 63. Ke6 {[%clk 0:00:11.8]} 63... Ba1 {[%clk 0:00:09.8]} 64. Kf5
{[%clk 0:00:10.7]} 64... Bc3 {[%clk 0:00:09.9]} 65. Rb8+ {[%clk 0:00:10.6]}
65... Kg7 {[%clk 0:00:10.1]} 66. Rc8 {[%clk 0:00:11.2]} 66... Bb2 {[%clk
0:00:10.3]} 67. Re8 {[%clk 0:00:09.7]} 67... Bc3 {[%clk 0:00:10.1]} 68. Re3
{[%clk 0:00:08.5]} 68... Bb2 {[%clk 0:00:10.2]} 69. Rb3 {[%clk 0:00:08.9]} 69...
Ba1 {[%clk 0:00:10]} 70. Kg5 {[%clk 0:00:08.6]} 70... Bd4 {[%clk 0:00:09.3]} 71.
Rd3 {[%clk 0:00:07.2]} 71... Bb2 {[%clk 0:00:09.1]} 72. Rd7+ {[%clk 0:00:07.6]}
72... Kg8 {[%clk 0:00:09.3]} 73. Rb7 {[%clk 0:00:08.2]} 73... Bc1+ {[%clk
0:00:09.4]} 74. Kf6 {[%clk 0:00:07.9]} 74... Bf4 {[%clk 0:00:07.2]} 75. Ra7
{[%clk 0:00:05.1]} 1-0

[Event "Late-Titled-Tuesday-Blitz-October-24-2023"]
[Site "Chess.com"]
[Date "2023.10.24"]
[Round "7"]
[White "Felix-Rose"]
[Black "Freeeeeeeeeeeeeeeeee"]
[Result "1-0"]
[WhiteElo "2326"]
[BlackElo "2037"]
[TimeControl "180+1"]
[EndTime "15:17:29 PDT"]
[Termination "Felix-Rose won by checkmate"]

1. e4 {[%clk 0:02:59.9]} 1... e5 {[%clk 0:02:55.6]} 2. Nf3 {[%clk 0:02:59.9]}
2... Nc6 {[%clk 0:02:55.4]} 3. Bb5 {[%clk 0:02:56.3]} 3... d6 {[%clk 0:02:54.3]}
4. d4 {[%clk 0:02:55]} 4... Bd7 {[%clk 0:02:52.8]} 5. Nc3 {[%clk 0:02:50.2]}
5... Nf6 {[%clk 0:02:45.4]} 6. Bxc6 {[%clk 0:02:48.1]} 6... Bxc6 {[%clk
0:02:44.6]} 7. Qd3 {[%clk 0:02:48.2]} 7... exd4 {[%clk 0:02:38.4]} 8. Nxd4
{[%clk 0:02:47.8]} 8... Qd7 {[%clk 0:02:36.2]} 9. Bg5 {[%clk 0:02:46.9]} 9...
Be7 {[%clk 0:02:36.1]} 10. Nf5 {[%clk 0:02:34.5]} 10... Bf8 {[%clk 0:02:24.4]}
11. Bxf6 {[%clk 0:02:29.9]} 11... gxf6 {[%clk 0:02:20.3]} 12. O-O-O {[%clk
0:02:29.7]} 12... O-O-O {[%clk 0:02:06.3]} 13. Qd4 {[%clk 0:02:29.5]} 13... Qe6
{[%clk 0:01:52.6]} 14. Qxa7 {[%clk 0:02:09.1]} 14... Bxe4 {[%clk 0:01:50.2]} 15.
Qa8+ {[%clk 0:02:08.7]} 15... Kd7 {[%clk 0:01:49.7]} 16. Qa4+ {[%clk 0:02:08.2]}
16... Bc6 {[%clk 0:01:45]} 17. Qf4 {[%clk 0:01:54.1]} 17... Qe5 {[%clk
0:01:41.2]} 18. Qg4 {[%clk 0:01:48.9]} 18... h5 {[%clk 0:01:37.2]} 19. Qh3
{[%clk 0:01:46.7]} 19... Qf4+ {[%clk 0:01:29.7]} 20. Ne3+ {[%clk 0:01:38.6]}
20... Ke8 {[%clk 0:01:18.8]} 21. Rhe1 {[%clk 0:01:37]} 21... Bd7 {[%clk
0:01:09.5]} 22. Nd5 {[%clk 0:01:25.5]} 22... Bxh3 {[%clk 0:01:04]} 23. Nxf4
{[%clk 0:01:19.3]} 23... Be6 {[%clk 0:01:02]} 24. Ned5 {[%clk 0:01:16]} 24...
Bh6 {[%clk 0:00:52.4]} 25. Nxf6+ {[%clk 0:01:13.7]} 25... Kf8 {[%clk 0:00:49.4]}
26. Nxh5 {[%clk 0:01:14]} 26... Bg4 {[%clk 0:00:46.3]} 27. Kb1 {[%clk
0:01:01.6]} 27... Bxd1 {[%clk 0:00:41.7]} 28. Rxd1 {[%clk 0:01:01.9]} 28... Bxf4
{[%clk 0:00:37.4]} 29. Nxf4 {[%clk 0:01:02.8]} 29... Rxh2 {[%clk 0:00:38.3]} 30.
a4 {[%clk 0:01:02]} 30... Re8 {[%clk 0:00:36.9]} 31. Rd4 {[%clk 0:00:55.8]}
31... Re1+ {[%clk 0:00:27.9]} 32. Ka2 {[%clk 0:00:55.9]} 32... Rf1 {[%clk
0:00:27.3]} 33. f3 {[%clk 0:00:49.7]} 33... Rf2 {[%clk 0:00:19.5]} 34. Kb3
{[%clk 0:00:48.7]} 34... Rh6 {[%clk 0:00:15.1]} 35. a5 {[%clk 0:00:46.9]} 35...
Ke7 {[%clk 0:00:13]} 36. Nd5+ {[%clk 0:00:44.3]} 36... Kd7 {[%clk 0:00:12.9]}
37. Rf4 {[%clk 0:00:43.2]} 37... Rxg2 {[%clk 0:00:12]} 38. Rxf7+ {[%clk
0:00:42]} 38... Ke6 {[%clk 0:00:12.6]} 39. Nf4+ {[%clk 0:00:35.5]} 39... Kxf7
{[%clk 0:00:12.9]} 40. Nxg2 {[%clk 0:00:36.4]} 40... Rh3 {[%clk 0:00:11]} 41.
Ne1 {[%clk 0:00:36.2]} 41... Ke6 {[%clk 0:00:10.2]} 42. Kc4 {[%clk 0:00:35.4]}
42... c6 {[%clk 0:00:09.9]} 43. b4 {[%clk 0:00:34.2]} 43... d5+ {[%clk
0:00:10.2]} 44. Kc5 {[%clk 0:00:34]} 44... Kd7 {[%clk 0:00:10.1]} 45. Kb6 {[%clk
0:00:34.1]} 45... Kc8 {[%clk 0:00:09.3]} 46. f4 {[%clk 0:00:34.8]} 46... Re3
{[%clk 0:00:08.6]} 47. Nd3 {[%clk 0:00:34.5]} 47... Re4 {[%clk 0:00:07.8]} 48.
Nc5 {[%clk 0:00:33.7]} 48... Rxb4+ {[%clk 0:00:07.6]} 49. Ka7 {[%clk 0:00:33.8]}
49... Rxf4 {[%clk 0:00:08.2]} 50. Nxb7 {[%clk 0:00:34]} 50... Ra4 {[%clk
0:00:08.7]} 51. a6 {[%clk 0:00:27.8]} 51... Kc7 {[%clk 0:00:08.5]} 52. Nc5
{[%clk 0:00:27.3]} 52... Ra2 {[%clk 0:00:08.6]} 53. c3 {[%clk 0:00:27.1]} 53...
Ra3 {[%clk 0:00:08.7]} 54. Ne6+ {[%clk 0:00:27]} 54... Kd6 {[%clk 0:00:08.9]}
55. Nd4 {[%clk 0:00:26.4]} 55... Rxc3 {[%clk 0:00:08.9]} 56. Kb8 {[%clk
0:00:27]} 56... Rb3+ {[%clk 0:00:08.9]} 57. Nxb3 {[%clk 0:00:26.5]} 57... c5
{[%clk 0:00:08.8]} 58. a7 {[%clk 0:00:26.6]} 58... c4 {[%clk 0:00:09.5]} 59. Nd4
{[%clk 0:00:27.1]} 59... Ke5 {[%clk 0:00:09.6]} 60. Nc6+ {[%clk 0:00:27.4]}
60... Ke4 {[%clk 0:00:09.8]} 61. a8=Q {[%clk 0:00:28.3]} 61... c3 {[%clk
0:00:10.7]} 62. Qa1 {[%clk 0:00:26.2]} 62... Kd3 {[%clk 0:00:10.9]} 63. Qd1+
{[%clk 0:00:25.7]} 63... Kc4 {[%clk 0:00:10.6]} 64. Qd4+ {[%clk 0:00:26.1]}
64... Kb3 {[%clk 0:00:08.9]} 65. Qb4+ {[%clk 0:00:25.8]} 65... Kc2 {[%clk
0:00:07.1]} 66. Nd4+ {[%clk 0:00:26.4]} 66... Kd2 {[%clk 0:00:03.5]} 67. Kc7
{[%clk 0:00:26.4]} 67... Kd3 {[%clk 0:00:03.9]} 68. Nb3 {[%clk 0:00:26.3]} 68...
c2 {[%clk 0:00:04.3]} 69. Qd4+ {[%clk 0:00:25.9]} 69... Ke2 {[%clk 0:00:04.5]}
70. Qd2+ {[%clk 0:00:26.4]} 70... Kf3 {[%clk 0:00:04.7]} 71. Qxc2 {[%clk
0:00:27.3]} 71... d4 {[%clk 0:00:05.3]} 72. Nxd4+ {[%clk 0:00:27.6]} 72... Kg4
{[%clk 0:00:05.8]} 73. Qf5+ {[%clk 0:00:27.6]} 73... Kg3 {[%clk 0:00:06.1]} 74.
Qf3+ {[%clk 0:00:27.2]} 74... Kh4 {[%clk 0:00:06.3]} 75. Nf5+ {[%clk 0:00:27.8]}
75... Kg5 {[%clk 0:00:07]} 76. Ne3 {[%clk 0:00:26]} 76... Kg6 {[%clk 0:00:07.4]}
77. Qf5+ {[%clk 0:00:26.1]} 77... Kh6 {[%clk 0:00:07.6]} 78. Ng4+ {[%clk
0:00:26.3]} 78... Kg7 {[%clk 0:00:07.1]} 79. Qf6+ {[%clk 0:00:26.2]} 79... Kh7
{[%clk 0:00:07.3]} 80. Qf7+ {[%clk 0:00:25.3]} 80... Kh8 {[%clk 0:00:07.2]} 81.
Qf6+ {[%clk 0:00:22]} 81... Kh7 {[%clk 0:00:07.4]} 82. Qh6+ {[%clk 0:00:22.4]}
82... Kg8 {[%clk 0:00:07.7]} 83. Kd7 {[%clk 0:00:19.9]} 83... Kf7 {[%clk
0:00:08.1]} 84. Ne5+ {[%clk 0:00:19.5]} 84... Kg8 {[%clk 0:00:08.4]} 85. Qg6+
{[%clk 0:00:19.2]} 85... Kh8 {[%clk 0:00:08.2]} 86. Nf7# {[%clk 0:00:19.7]} 1-0

[Event "Late-Titled-Tuesday-Blitz-October-24-2023"]
[Site "Chess.com"]
[Date "2023.10.24"]
[Round "7"]
[White "Korchmar_Vasiliy"]
[Black "Angry_Twin"]
[Result "0-1"]
[WhiteElo "2787"]
[BlackElo "2944"]
[TimeControl "180+1"]
[EndTime "15:17:38 PDT"]
[Termination "Angry_Twin won on time"]

1. e4 {[%clk 0:03:00.9]} 1... c5 {[%clk 0:02:29.2]} 2. d4 {[%clk 0:02:59.9]}
2... cxd4 {[%clk 0:02:28.9]} 3. Qxd4 {[%clk 0:03:00.8]} 3... Nc6 {[%clk
0:02:28.7]} 4. Qd3 {[%clk 0:03:01.5]} 4... Nf6 {[%clk 0:02:28.8]} 5. Nc3 {[%clk
0:03:02.1]} 5... e6 {[%clk 0:02:28.6]} 6. Bf4 {[%clk 0:03:01.3]} 6... Qa5 {[%clk
0:02:04.8]} 7. a3 {[%clk 0:02:28.8]} 7... d5 {[%clk 0:01:53.4]} 8. O-O-O {[%clk
0:02:20.9]} 8... d4 {[%clk 0:01:53.2]} 9. Nb5 {[%clk 0:01:36.4]} 9... e5 {[%clk
0:01:50.2]} 10. Bd2 {[%clk 0:01:37]} 10... Qb6 {[%clk 0:01:49.5]} 11. f4 {[%clk
0:01:37.7]} 11... Ng4 {[%clk 0:01:40.2]} 12. Qg3 {[%clk 0:01:14.3]} 12... a6
{[%clk 0:01:38.2]} 13. h3 {[%clk 0:01:09.6]} 13... Nf6 {[%clk 0:01:29.3]} 14.
fxe5 {[%clk 0:01:02.6]} 14... Nxe4 {[%clk 0:01:29.5]} 15. Qe1 {[%clk 0:00:54]}
15... Nxd2 {[%clk 0:01:28.8]} 16. Nd6+ {[%clk 0:00:54.6]} 16... Bxd6 {[%clk
0:01:29]} 17. exd6+ {[%clk 0:00:55.5]} 17... Be6 {[%clk 0:01:29.7]} 18. Qxd2
{[%clk 0:00:54.6]} 18... O-O {[%clk 0:01:27.2]} 19. Nf3 {[%clk 0:00:53.3]} 19...
Rfd8 {[%clk 0:01:27.8]} 20. Qf4 {[%clk 0:00:48]} 20... Qc5 {[%clk 0:01:21.8]}
21. Nxd4 {[%clk 0:00:34.2]} 21... Rxd6 {[%clk 0:01:21.5]} 22. Nxe6 {[%clk
0:00:34.6]} 22... Rxd1+ {[%clk 0:01:22.4]} 23. Kxd1 {[%clk 0:00:35.1]} 23...
fxe6 {[%clk 0:01:04.6]} 24. Bc4 {[%clk 0:00:33.1]} 24... Nd4 {[%clk 0:00:49.9]}
25. Bd3 {[%clk 0:00:29.5]} 25... Rd8 {[%clk 0:00:49.8]} 26. Rf1 {[%clk
0:00:27.2]} 26... Nxc2 {[%clk 0:00:30.7]} 27. Kd2 {[%clk 0:00:15.3]} 27... Nd4
{[%clk 0:00:13.1]} 28. Bxh7+ {[%clk 0:00:15.5]} 28... Kh8 {[%clk 0:00:09.7]} 29.
Bd3 {[%clk 0:00:15.3]} 29... Nf5 {[%clk 0:00:10]} 30. g4 {[%clk 0:00:10.1]}
30... Qd5 {[%clk 0:00:09.8]} 31. Qf3 {[%clk 0:00:03.8]} 31... Qxf3 {[%clk
0:00:06.8]} 32. Rxf3 {[%clk 0:00:04.7]} 32... Nd6 {[%clk 0:00:07.4]} 33. Ke3
{[%clk 0:00:03.6]} 33... Kg8 {[%clk 0:00:08.1]} 34. Rf2 {[%clk 0:00:03.6]} 34...
Rd7 {[%clk 0:00:03.4]} 35. Rc2 {[%clk 0:00:04.1]} 35... Kf7 {[%clk 0:00:02.6]}
36. h4 {[%clk 0:00:04.5]} 36... Ke7 {[%clk 0:00:03.1]} 37. h5 {[%clk 0:00:05]}
37... Nf7 {[%clk 0:00:03.6]} 38. Bg6 {[%clk 0:00:03.4]} 38... Ne5 {[%clk
0:00:03.7]} 39. Kf4 {[%clk 0:00:03.3]} 39... Nxg6+ {[%clk 0:00:02.9]} 40. hxg6
{[%clk 0:00:03.3]} 40... Kf6 {[%clk 0:00:03.8]} 41. Re2 {[%clk 0:00:02.7]} 41...
Rd5 {[%clk 0:00:02.1]} 42. Rc2 {[%clk 0:00:02.3]} 42... Rd7 {[%clk 0:00:01.8]}
43. Re2 {[%clk 0:00:02.3]} 43... Re7 {[%clk 0:00:02.4]} 44. Re5 {[%clk
0:00:02.2]} 44... Kxg6 {[%clk 0:00:02.8]} 45. Rg5+ {[%clk 0:00:02.6]} 45... Kf6
{[%clk 0:00:03.4]} 46. Re5 {[%clk 0:00:03.2]} 46... g5+ {[%clk 0:00:03.4]} 47.
Ke4 {[%clk 0:00:01.7]} 47... Rd7 {[%clk 0:00:03.4]} 48. Rc5 {[%clk 0:00:02.1]}
48... Rd1 {[%clk 0:00:02.2]} 49. Rc7 {[%clk 0:00:01.9]} 49... Re1+ {[%clk
0:00:02.5]} 50. Kf3 {[%clk 0:00:02.2]} 50... b5 {[%clk 0:00:02.6]} 51. Rc6
{[%clk 0:00:02.3]} 51... Rb1 {[%clk 0:00:02.5]} 52. Rxa6 {[%clk 0:00:02.4]}
52... Rxb2 {[%clk 0:00:03]} 53. Ke4 {[%clk 0:00:02.9]} 53... Rb3 {[%clk
0:00:01.9]} 54. Ra5 {[%clk 0:00:02.8]} 54... Rg3 {[%clk 0:00:02.1]} 55. Rxb5
{[%clk 0:00:02.2]} 55... Rxg4+ {[%clk 0:00:03]} 56. Kf3 {[%clk 0:00:02.6]} 56...
Ra4 {[%clk 0:00:03.9]} 57. Rb3 {[%clk 0:00:02.6]} 57... Kf5 {[%clk 0:00:04.4]}
58. Kg3 {[%clk 0:00:02.9]} 58... e5 {[%clk 0:00:04.9]} 59. Rf3+ {[%clk
0:00:03.1]} 59... Kg6 {[%clk 0:00:04.9]} 60. Re3 {[%clk 0:00:03.3]} 60... Kf6
{[%clk 0:00:04.4]} 61. Rf3+ {[%clk 0:00:03.3]} 61... Ke6 {[%clk 0:00:05]} 62.
Re3 {[%clk 0:00:03.2]} 62... Rd4 {[%clk 0:00:05.6]} 63. Rb3 {[%clk 0:00:02.2]}
63... g4 {[%clk 0:00:06.1]} 64. Rb8 {[%clk 0:00:02.1]} 64... Rf4 {[%clk
0:00:02.3]} 65. Re8+ {[%clk 0:00:02.3]} 65... Kd6 {[%clk 0:00:02.9]} 66. Rd8+
{[%clk 0:00:02.6]} 66... Ke7 {[%clk 0:00:03.4]} 67. Rg8 {[%clk 0:00:02.3]} 67...
Rf3+ {[%clk 0:00:03.3]} 68. Kxg4 {[%clk 0:00:02.2]} 68... Rf1 {[%clk 0:00:03.5]}
69. Rh8 {[%clk 0:00:02]} 69... e4 {[%clk 0:00:03.2]} 70. Kg3 {[%clk 0:00:01.7]}
70... Ke6 {[%clk 0:00:03.3]} 71. Kg2 {[%clk 0:00:02.1]} 71... Rf6 {[%clk
0:00:02.6]} 72. Re8+ {[%clk 0:00:02.4]} 72... Kd5 {[%clk 0:00:03.1]} 73. a4
{[%clk 0:00:02.7]} 73... Kd4 {[%clk 0:00:03.7]} 74. a5 {[%clk 0:00:03]} 74... e3
{[%clk 0:00:04.3]} 75. Rd8+ {[%clk 0:00:02.7]} 75... Kc3 {[%clk 0:00:04.7]} 76.
Rc8+ {[%clk 0:00:03]} 76... Kd2 {[%clk 0:00:05.1]} 77. Rd8+ {[%clk 0:00:03.3]}
77... Ke1 {[%clk 0:00:05.6]} 78. Rd5 {[%clk 0:00:03.6]} 78... e2 {[%clk
0:00:05.6]} 79. Kg1 {[%clk 0:00:03.4]} 79... Rg6+ {[%clk 0:00:05.8]} 80. Kh2
{[%clk 0:00:03.4]} 80... Kf2 {[%clk 0:00:04.1]} 81. Rf5+ {[%clk 0:00:03.1]}
81... Ke3 {[%clk 0:00:04.7]} 82. Re5+ {[%clk 0:00:03.4]} 82... Kf3 {[%clk
0:00:05.3]} 83. Rf5+ {[%clk 0:00:03.1]} 83... Ke4 {[%clk 0:00:05.3]} 84. Rf8
{[%clk 0:00:03.3]} 84... Re6 {[%clk 0:00:05.5]} 0-1